{"text_format":"1","workbook":"xlsx","n_sheets":14,"sheets":["الرئسية","المستودع الاول","المستودع الثاني","السمتودع الثالث","المستودع الرابع","الاسماء","الصفحة التي تظهر","1","2","3","4","5","6","7"],"not_rendered":{"charts":0,"images":0,"macros":1,"external_links":0,"defined_names":4,"comments":0,"pivot_tables":0},"unopened":[],"bounds":{"document_bytes":16777216,"sheet_cells":100000,"rows_first":2000,"rows_last":500,"rows_between":2000,"halvings":0,"cell_chars":16384,"cell_head_chars":4096},"cells_cut":0,"cells_raw":0,"read":"whole","date_system":"1900"}

{"sheet":"الرئسية","index":0,"n_rows":11,"n_cols":9,"rows_kept":11,"cut":false,"hidden":false,"merged":[]}
[]
[]
[]
[]
[]
[null,null,null,null,null,null,null,null,"الاستعـــلام"]
[null,null,null,null,null,null,null,null,"المستودع الأول"]
[null,null,null,null,null,null,null,null,"المستودع الثاني"]
[null,null,null,null,null,null,null,null,"المستودع الثالث"]
[null,null,null,null,null,null,null,null,"المستودع الرابع"]
[null,null,null,null,null,null,null,null,"يوزرفورم الصرف"]

{"sheet":"المستودع الاول","index":1,"n_rows":22,"n_cols":7,"rows_kept":22,"cut":false,"hidden":false,"merged":[[0,0,0,6]]}
["المصروفات"]
["ت","الصنف","الموجود","تغذية","المصروف","المتبقي","ملاحظات"]
[1,"صنف 1",null,null,null,null,"حبة"]
[{"$f":"A3+1","v":2},"صنف 2",null,null,null,null,"حبة"]
[{"$f":"A4+1","v":3},"صنف 3",null,null,null,null,"حبة"]
[{"$f":"A5+1","v":4},"صنف 4",null,null,null,null,"حبة"]
[5,"صنف5",null,null,null,null,"حبة"]
[6,"صنف 6",null,null,null,null,"حبة"]
[7,"صنف 7",null,null,null,null,"حبة"]
[8,"صنف 8",null,null,null,null,"حبة"]
[9,"صنف 9",null,null,null,null,"حبة"]
[10,"صنف 10",null,null,null,null,"حبة"]
[11,"صنف 11",null,null,null,null,"حبة"]
[12,"صنف 12",null,null,null,null,"حبة"]
[13,"صنف 13",null,null,null,null,"حبة"]
[14,"صنف 14",null,null,null,null,"حبة"]
[15,"صنف 15",null,null,null,null,"طقم"]
[16,"صنف 16",null,null,null,null,"حبة"]
[17,"صنف 17",null,null,null,null,"حبة"]
[18,"صنف 18",null,null,null,null,"حبة"]
[19,"صنف 19",null,null,null,null,"حبة"]
[20,"صنف 20",null,null,null,null,"حبة"]

{"sheet":"المستودع الثاني","index":2,"n_rows":64,"n_cols":7,"rows_kept":64,"cut":false,"hidden":false,"merged":[[0,0,0,6]]}
["المصروفات"]
[null,"الصنف","الموجود","تغذية","المصروف","المتبقي","ملاحظات"]
[null,"صنف 1",null,null,{"$f":"SUM('1:7'!A4:A100)","v":7},null,"حبة"]
[null,"صنف 2",null,null,null,null,"حبة"]
[null,"صنف 3",null,null,null,null,"حبة"]
[null,"صنف 4",null,null,null,null,"حبة"]
[null,"صنف5",null,null,null,null,"حبة"]
[null,"صنف 6",null,null,null,null,"حبة"]
[null,"صنف 7",null,null,null,null,"حبة"]
[null,"صنف 8",null,null,null,null,"حبة"]
[null,"صنف 9",null,null,null,null,"حبة"]
[null,"صنف 10",null,null,null,null,"حبة"]
[null,"صنف 11",null,null,null,null,"حبة"]
[null,"صنف 12",null,null,null,null,"حبة"]
[null,"صنف 13",null,null,null,null,"حبة"]
[null,"صنف 14",null,null,null,null,"حبة"]
[null,"صنف 15",null,null,null,null,"حبة"]
[null,"صنف 16",null,null,null,null,"حبة"]
[null,"صنف 17",null,null,null,null,"حبة"]
[null,"صنف 18",null,null,null,null,"حبة"]
[null,"صنف 19",null,null,null,null,"حبة"]
[null,"صنف 20",null,null,null,null,"حبة"]
[null,"صنف 21",null,null,null,null,"حبة"]
[null,"صنف 22",null,null,null,null,"حبة"]
[null,"صنف 23",null,null,null,null,"حبة"]
[null,"صنف 24",null,null,null,null,"حبة"]
[null,"صنف 25",null,null,null,null,"حبة"]
[null,"صنف 26",null,null,null,null,"حبة"]
[null,"صنف 27",null,null,null,null,"حبة"]
[null,"صنف 28",null,null,null,null,"حبة"]
[null,"صنف 29",null,null,null,null,"حبة"]
[null,"صنف 30",null,null,null,null,"حبة"]
[null,"صنف 31",null,null,null,null,"حبة"]
[null,"صنف 32",null,null,null,null,"حبة"]
[null,"صنف 33",null,null,null,null,"حبة"]
[null,"صنف 34",null,null,null,null,"حبة"]
[null,"صنف 35",null,null,null,null,"حبة"]
[null,"صنف 36",null,null,null,null,"حبة"]
[null,"صنف 37",null,null,null,null,"حبة"]
[null,"صنف 38",null,null,null,null,"حبة"]
[null,"صنف 39",null,null,null,null,"حبة"]
[null,"صنف 40",null,null,null,null,"حبة"]
[null,"صنف 1",null,null,null,null,"حبة"]
[null,"صنف 41",null,null,null,null,"حبة"]
[null,"صنف 42",null,null,null,null,"حبة"]
[null,"صنف 43",null,null,null,null,"حبة"]
[null,"صنف 44",null,null,null,null,"حبة"]
[null,"صنف 45",null,null,null,null,"حبة"]
[null,"صنف 46",null,null,null,null,"حبة"]
[null,"صنف 47",null,null,null,null,"حبة"]
[null,"صنف 48",null,null,null,null,"حبة"]
[null,"صنف 49",null,null,null,null,"حبة"]
[null,"صنف 50",null,null,null,null,"حبة"]
[null,"صنف 50",null,null,null,null,"حبة"]
[null,"صنف 51",null,null,null,null,"حبة"]
[null,"صنف 52",null,null,null,null,"حبة"]
[null,"صنف 53",null,null,null,null,"حبة"]
[null,"صنف 54",null,null,null,null,"حبة"]
[null,"صنف 55",null,null,null,null,"حبة"]
[null,"صنف 56",null,null,null,null,"حبة"]
[null,"صنف 57",null,null,null,null,"حبة"]
[null,"صنف 58",null,null,null,null,"حبة"]
[null,"صنف 59",null,null,null,null,"حبة"]
[null,"صنف 60",null,null,null,null,"حبة"]

{"sheet":"السمتودع الثالث","index":3,"n_rows":66,"n_cols":7,"rows_kept":66,"cut":false,"hidden":false,"merged":[[0,0,0,6]]}
["المصروفات"]
[null,"الصنف","الموجود","التغذية","المصروف","المتبقي","ملاحظات"]
[1,"صنف 1",null,null,null,null,"ثوب"]
[{"$f":"A3+1","v":2},"صنف 2",null,null,null,null,"ثوب"]
[{"$f":"A4+1","v":3},"صنف 3",null,null,null,null,"ثوب"]
[4,"صنف 4",null,null,null,null,"حبة"]
[5,"صنف5",null,null,null,null,"حبة"]
[6,"صنف 6",null,null,null,null,"حبة"]
[7,"صنف 7",null,null,null,null,"حبة"]
[8,"صنف 8",null,null,null,null,"حبة"]
[9,"صنف 9",null,null,null,null,"حبة"]
[10,"صنف 10",null,null,null,null,"حبة"]
[11,"صنف 11",null,null,null,null,"حبة"]
[12,"صنف 12",null,null,null,null,"حبة"]
[13,"صنف 13",null,null,null,null,"حبة"]
[14,"صنف 14",null,null,null,null,"حبة"]
[15,"صنف 15",null,null,null,null,"حبة"]
[16,"صنف 16",null,null,null,null,"حبة"]
[17,"صنف 17",null,null,null,null,"حبة"]
[18,"صنف 18",null,null,null,null,"حبة"]
[19,"صنف 19",null,null,null,null,"حبة"]
[20,"صنف 20",null,null,null,null,"حبة"]
[21,"صنف 21",null,null,null,null,"حبة"]
[22,"صنف 22",null,null,null,null,"حبة"]
[23,"صنف 23",null,null,null,null,"حبة"]
[24,"صنف 24",null,null,null,null,"حبة"]
[25,"صنف 25",null,null,null,null,"حبة"]
[26,"صنف 26",null,null,null,null,"حبة"]
[27,"صنف 27",null,null,null,null,"بكت"]
[28,"صنف 28",null,null,null,null,"بكت"]
[29,"صنف 29",null,null,null,null,"بكت"]
[30,"صنف 30",null,null,null,null,"بكت"]
[31,"صنف 31",null,null,null,null,"بكت"]
[32,"صنف 32",null,null,null,null,"بكت"]
[33,"صنف 33",null,null,null,null,"بكت"]
[34,"صنف 34",null,null,null,null,"بكت"]
[35,"صنف 35",null,null,null,null,"حبة"]
[36,"صنف 36",null,null,null,null,"حبة"]
[37,"صنف 37",null,null,null,null,"حبة"]
[38,"صنف 38",null,null,null,null,"حبة"]
[39,"صنف 39",null,null,null,null,"حبة"]
[40,"صنف 40",null,null,null,null,"حبة"]
[41,"صنف 1",null,null,null,null,"حبة"]
[42,"صنف 41",null,null,null,null,"حبة"]
[43,"صنف 42",null,null,null,null,"حبة"]
[44,"صنف 43",null,null,null,null,"حبة"]
[45,"صنف 44",null,null,null,null,"حبة"]
[46,"صنف 45",null,null,null,null,"حبة"]
[47,"صنف 46",null,null,null,null,"حبة"]
[48,"صنف 47",null,null,null,null,"حبة"]
[49,"صنف 48",null,null,null,null,"حبة"]
[50,"صنف 49",null,null,null,null,"حبة"]
[51,"صنف 50",null,null,null,null,"حبة"]
[52,"صنف 50",null,null,null,null,"حبة"]
[53,"صنف 51",null,null,null,null,"حبة"]
[54,"صنف 52",null,null,null,null,"حبة"]
[55,"صنف 53",null,null,null,null,"حبة"]
[56,"صنف 54",null,null,null,null,"حبة"]
[57,"صنف 55",null,null,null,null,"حبة"]
[58,"صنف 56",null,null,null,null,"مصروفة للاعاشة"]
[59,"صنف 57",null,null,null,null,"حبة"]
[60,"صنف 58",null,null,null,null,"حبة"]
[61,"صنف 59",null,null,null,null,"حبة"]
[62,"صنف 60",null,null,null,null,"حبة"]
[63,"صنف 61",null,null,null,null,"حبة"]
[64,"صنف 62",null,null,null,null,"حبة"]

{"sheet":"المستودع الرابع","index":4,"n_rows":29,"n_cols":12,"rows_kept":29,"cut":false,"hidden":false,"merged":[[0,1,1,5],[2,7,2,11],[4,10,10,10],[11,10,14,10],[15,10,19,10],[24,10,28,10]]}
[null,"كشف ألاجهزة النقالة "]
[]
["ت","النوع","عدد","اسم المستخدم ","كود الجهاز","رقم الشريحه",null,"كشف الأجهزة الأخرى المصروفة"]
[1,"جهز ايفون 8",2,"احمد",5134454,123456789,null,"ت","نوع الجهاز","الرقم التسلسلي للجهاز","اسم المستخدم","الملحقات"]
[{"$f":"A4+1","v":2},"جهاز سامسونج ",1,"علي",24245445,123456789,null,1]
[{"$f":"A5+1","v":3},null,null,null,null,null,null,2]
[4,null,null,null,null,null,null,3]
[5,null,null,null,null,null,null,4]
[6,null,null,null,null,null,null,5]
[null,null,null,null,null,null,null,6]
[null,null,null,null,null,null,null,7]
[null,null,null,null,null,null,null,8]
[null,null,null,null,null,null,null,9]
[null,null,null,null,null,null,null,10]
[null,null,null,null,null,null,null,11]
[null,null,null,null,null,null,null,12]
[null,null,null,null,null,null,null,13]
[null,null,null,null,null,null,null,14]
[null,null,null,null,null,null,null,15]
[null,null,null,null,null,null,null,16]
[null,null,null,null,null,null,null,17]
[null,null,null,null,null,null,null,18]
[null,null,null,null,null,null,null,19]
[null,null,null,null,null,null,null,20]
[null,null,null,null,null,null,null,21]
[null,null,null,null,null,null,null,22]
[null,null,null,null,null,null,null,23]
[null,null,null,null,null,null,null,24]
[null,null,null,null,null,null,null,25]

{"sheet":"الاسماء","index":5,"n_rows":13,"n_cols":12,"rows_kept":13,"cut":false,"hidden":false,"merged":[[1,6,1,7],[1,8,1,10]]}
[]
[null,null,null,null,null,null,"اكتب الاسم المراد البحث عنه هنا ",null,"سعد"]
[]
[]
[]
[null,null,null,null,null,null,"تسلسل","الاســــــــــــــــــــم","المرتبة","الرقم الوظيفي"]
[null,null,null,null,null,null,1,"محمد","الأولى",124,null,"من خلال هذه الصفحة استطيع الدخول على صفحات الموظيفن لطباعة تقرير بجميع ما صرفوا "]
[null,null,null,null,null,null,{"$f":"G7+1","v":2},"سعد ","الثانية",1251]
[null,null,null,null,null,null,{"$f":"G8+1","v":3},"عبدالله ","الثانية",12544]
[null,null,null,null,null,null,4,"سامي ","الخامسة",25521]
[null,null,null,null,null,null,5,"منصور","الخامسة",5225]
[null,null,null,null,null,null,6,"سفر ","السابعة",2512]
[null,null,null,null,null,null,7,"احمد","السابعة",25225]

{"sheet":"الصفحة التي تظهر","index":6,"n_rows":23,"n_cols":30,"rows_kept":23,"cut":false,"hidden":false,"merged":[[0,0,1,26],[5,29,7,29],[22,8,22,17],[21,19,21,28],[3,29,3,30],[1,29,1,30]]}
[{"$f":"الاسماء!H7","v":"محمد"}]
[null,null,null,null,null,null,null,null,null,null,null,null,null,null,null,null,null,null,null,null,null,null,null,null,null,null,null,null,null,"يظهر معي هنا بحث بجميع الأسماء الموجوده في صفحة الأسماء"]
["صنف 1","صنف2","صنف 3","صنف 4","صنف 5","صنف 6","صنف7","صنف 8","صنف 9","صنف10",{"$f":"الاسماء!I7","v":"الأولى"},"صنف 12","صنف 13","صنف 14","صنف 15"," صنف 16"," صنف 17"," صنف 18"," صنف 19"," صنف 20"," صنف 21"," صنف 22"," صنف 23"," صنف 24"," صنف 25"," صنف 26","تاريخ الصرف"]
[1,null,null,null,null,null,null,null,null,null,null,null,null,null,null,null,null,null,null,null,null,null,null,null,null,null,"2018-12-01",null,null,"الأرقام التي تكتب هنا تخصم اصنافة من المستودع الأول وتضاف في صفحة  موظف "]
[]
[]
[]
[]
[]
[]
[]
[null,null,null,null,null,null,null,null,null,null,null,null,null,null,null,null,null,null,null,null,null,null,null,null,null,null,null,null,null,"           عند الضغط عليه يحذف اسم العميل بعد طباعة الصفحة "]
[]
[]
[]
[]
[]
[]
[]
[]
[]
[null,null,null,null,null,null,null,null,null,null,null,null,null,null,null,null,null,null,null,"عند الضغط عليه تضاف صفحة جديده باسم اخر موظف  تم اضافته"]
[null,null,null,null,null,null,null,null,"زر ترحيل البيانات الجدول الى صفحة الموظف"]

{"sheet":"1","index":7,"n_rows":4,"n_cols":27,"rows_kept":4,"cut":false,"hidden":false,"merged":[[0,0,1,26]]}
[{"$f":"الاسماء!H7","v":"محمد"}]
[]
["صنف 1","صنف2","صنف 3","صنف 4","صنف 5","صنف 6","صنف7","صنف 8","صنف 9","صنف10",{"$f":"الاسماء!I7","v":"الأولى"},"صنف 12","صنف 13","صنف 14","صنف 15"," صنف 16"," صنف 17"," صنف 18"," صنف 19"," صنف 20"," صنف 21"," صنف 22"," صنف 23"," صنف 24"," صنف 25"," صنف 26","التاريخ"]
[1]

{"sheet":"2","index":8,"n_rows":4,"n_cols":27,"rows_kept":4,"cut":false,"hidden":false,"merged":[[0,0,1,26]]}
[{"$f":"الاسماء!H8","v":"سعد "}]
[]
["صنف 1","صنف2","صنف 3","صنف 4","صنف 5","صنف 6","صنف7","صنف 8","صنف 9","صنف10",{"$f":"الاسماء!I8","v":"الثانية"},"صنف 12","صنف 13","صنف 14","صنف 15"," صنف 16"," صنف 17"," صنف 18"," صنف 19"," صنف 20"," صنف 21"," صنف 22"," صنف 23"," صنف 24"," صنف 25"," صنف 26","التاريخ"]
[1]

{"sheet":"3","index":9,"n_rows":4,"n_cols":27,"rows_kept":4,"cut":false,"hidden":false,"merged":[[0,0,1,26]]}
[{"$f":"الاسماء!H9","v":"عبدالله "}]
[]
["صنف 1","صنف2","صنف 3","صنف 4","صنف 5","صنف 6","صنف7","صنف 8","صنف 9","صنف10","صنف  11","صنف 12","صنف 13","صنف 14","صنف 15"," صنف 16"," صنف 17"," صنف 18"," صنف 19"," صنف 20"," صنف 21"," صنف 22"," صنف 23"," صنف 24"," صنف 25"," صنف 26","التاريخ"]
[1]

{"sheet":"4","index":10,"n_rows":4,"n_cols":27,"rows_kept":4,"cut":false,"hidden":false,"merged":[[0,0,1,26]]}
[{"$f":"الاسماء!H10","v":"سامي "}]
[]
["صنف 1","صنف2","صنف 3","صنف 4","صنف 5","صنف 6","صنف7","صنف 8","صنف 9","صنف10","صنف  11","صنف 12","صنف 13","صنف 14","صنف 15"," صنف 16"," صنف 17"," صنف 18"," صنف 19"," صنف 20"," صنف 21"," صنف 22"," صنف 23"," صنف 24"," صنف 25"," صنف 26","التاريخ"]
[1]

{"sheet":"5","index":11,"n_rows":4,"n_cols":27,"rows_kept":4,"cut":false,"hidden":false,"merged":[[0,0,1,26]]}
[{"$f":"الاسماء!H11","v":"منصور"}]
[]
["صنف 1","صنف2","صنف 3","صنف 4","صنف 5","صنف 6","صنف7","صنف 8","صنف 9","صنف10","صنف  11","صنف 12","صنف 13","صنف 14","صنف 15"," صنف 16"," صنف 17"," صنف 18"," صنف 19"," صنف 20"," صنف 21"," صنف 22"," صنف 23"," صنف 24"," صنف 25"," صنف 26","التاريخ"]
[1]

{"sheet":"6","index":12,"n_rows":4,"n_cols":27,"rows_kept":4,"cut":false,"hidden":false,"merged":[[0,0,1,26]]}
[{"$f":"الاسماء!H12","v":"سفر "}]
[]
["صنف 1","صنف2","صنف 3","صنف 4","صنف 5","صنف 6","صنف7","صنف 8","صنف 9","صنف10","صنف  11","صنف 12","صنف 13","صنف 14","صنف 15"," صنف 16"," صنف 17"," صنف 18"," صنف 19"," صنف 20"," صنف 21"," صنف 22"," صنف 23"," صنف 24"," صنف 25"," صنف 26","التاريخ"]
[1]

{"sheet":"7","index":13,"n_rows":4,"n_cols":27,"rows_kept":4,"cut":false,"hidden":false,"merged":[[0,0,1,26]]}
[{"$f":"الاسماء!H13","v":"احمد"}]
[]
["صنف 1","صنف2","صنف 3","صنف 4","صنف 5","صنف 6","صنف7","صنف 8","صنف 9","صنف10","صنف  11","صنف 12","صنف 13","صنف 14","صنف 15"," صنف 16"," صنف 17"," صنف 18"," صنف 19"," صنف 20"," صنف 21"," صنف 22"," صنف 23"," صنف 24"," صنف 25"," صنف 26","التاريخ"]
[1]